[Event "12th Senioren-Cup Tegernsee 2024"]
[Site "Rottach-Egern"]
[Date "2024.04.12"]
[Round "7.10"]
[White "Strobel, Walter"]
[Black "Mueller, Erich"]
[Result "1/2-1/2"]
[ECO "B80"]
[WhiteElo "2147"]
[BlackElo "2125"]
[Annotator "TA"]
[PlyCount "108"]
[EventDate "2024.04.02"]
[EventType "swiss"]
[EventCountry "GER"]
[SourceTitle "playchess.com"]
[Source "ChessBase"]
[SourceQuality "1"]
[TimeControl "7800+30"]

{[%evp 18,108,82,94,110,110,121,71,154,132,156,141,150,-69,122,-44,163,163,172,0,0,0,0,0,0,0,587,239,297,275,633,670,662,664,646,635,583,60,60,60,60,60,128,60,60,45,45,45,45,45,45,45,45,45,45,16,21,0,3,0,43,0,6,0,14,68,68,68,71,50,72,72,72,72,106,22,73,0,108,115,116,22,116,116,115,22,71,78,79,22,22,22,22]} 1. e4 {[%emt 0:00:03]} c5 {[%emt 0:00:10]} 2. Nf3 {[%emt 0:00:19]} d6 {[%emt 0:01:16]} 3. d4 {[%emt 0:00:28]} cxd4 {[%emt 0:00:05]} 4. Nxd4 {[%emt 0:00:03]} Nf6 {[%emt 0:00:13]} 5. Nc3 {[%emt 0:02:13]} Nc6 {[%emt 0:01:10]} 6. Be3 {[%emt 0:00:55]} Bd7 {[%emt 0:05:34]} 7. f3 {[%emt 0:01:02]} a6 {[%emt 0:00:38]} 8. Qd2 {[%emt 0:00:31]} e6 {[%emt 0:02:24]} 9. g4 {[%emt 0:00:47]} Be7 {[%emt 0:00:23]} 10. O-O-O {[%emt 0:00:53]} Rc8 {[%emt 0:06:13] B80: Sicilian Scheveningen: 6 g3 and 6 Be3, including English Attack.} 11. Kb1 {[%emt 0:01:31]} Qc7 {[%emt 0:00:46]} 12. Be2 {[%emt 0:05:26]} (12. g5 $142 Nh5 13. Nxc6 Bxc6 14. Bh3) 12... Na5 $146 {[%emt 0:05:04]} (12... Nxd4 $142 13. Qxd4 (13. Bxd4 e5 $16) 13... O-O) ({Predecessor:} 12... Nxd4 13. Bxd4 e5 14. Be3 Be6 15. g5 Nd7 16. h4 b5 17. Rc1 Nb6 18. Bxb6 Qxb6 {½-½ Zagni,E-Faust,R Villa Ballester LV op 2005 (1)}) 13. g5 $16 {[%emt 0:05:20]} Nh5 {[%emt 0:10:49]} 14. f4 {[%emt 0:09:35]} Nc4 {[%emt 0:01:35]} 15. Qd3 $2 {[%emt 0:03:08]} (15. Bxc4 $16 Qxc4 16. e5 (16. f5 O-O $16)) 15... g6 $2 {[%emt 0:03:28]} (15... Qb6 $1 $15 16. Qxc4 (16. Bxh5 $2 Qxb2#) 16... Rxc4 17. Bxc4 Qd8) 16. f5 $2 {[%emt 0:03:42]} (16. Bxh5 $16 {Hoping for Bg4.} Qb6 17. b3 Nxe3 18. Qxe3) 16... Nxe3 $2 {[%emt 0:05:10]} (16... Qb6 $1 $15 {stays ahead.} 17. Qxc4 Rxc4 (17... exf5 $2 18. Nd5 $18) 18. Bxc4 Qc5 (18... exf5 19. Nxf5 Qc7 20. Bxf7+ Kxf7 21. Nxe7 $14) (18... gxf5 19. exf5 exf5 20. Nxf5 $16)) 17. Qxe3 $18 {[%emt 0:00:07]} e5 {[%emt 0:02:05] aiming for ...Qc5.} 18. Nd5 $2 {[%emt 0:04:03]} (18. Bxh5 $18 {Bg4 would now be deadly.} exd4 19. Qxd4) 18... Qc5 $11 {[%emt 0:00:22]} 19. b4 {[%emt 0:07:03]} (19. Bxh5 exd4 20. Rxd4 Qxc2+ 21. Ka1 gxh5 $15) 19... exd4 {[%emt 0:08:17]} 20. Qb3 $1 {[%emt 0:06:44]} Qa7 {[%emt 0:01:59]} 21. Rhf1 {[%emt 0:09:42][%cal Oe4e5]} Bb5 $2 {[%emt 0:09:53][%mdl 8192]} (21... b5 $11) 22. Bxb5+ {[%emt 0:06:38]} (22. Nxe7 $142 Rc7 (22... Kxe7 $2 23. fxg6 Kd8 24. Rxf7 $18) 23. Nd5) 22... axb5 $18 {[%emt 0:00:09]} 23. Nxe7 {[%emt 0:00:50]} Kxe7 $2 {[%emt 0:23:10]} (23... Rc4) 24. fxg6 $18 {[%emt 0:00:21]} Qa4 {[%emt 0:04:25] Strongly threatening ...Qxb3+.} 25. Rxf7+ {[%emt 0:08:08]} Kd8 {[%emt 0:00:13]} 26. gxh7 {[%emt 0:00:35]} Rc7 {[%emt 0:09:19]} 27. Rdf1 $2 {[%emt 0:00:38]} (27. Rxd4 $2 Qxb3+ (27... Rxh7 28. Rxd6+) 28. axb3 Rxf7 $19) (27. Rxc7 $18 {White threatens Qf7 and mate.} Qxb3+ 28. axb3 Kxc7 29. g6 (29. Rxd4 Rxh7 30. Rd5 Nf4 $17)) 27... Qxb3+ $14 {[%emt 0:00:16]} ({Don't play} 27... Rxh7 28. Rf8+ Kd7 29. R8f7+ (29. R1f7+ Rxf7 30. Qxf7+ Kc6 $11) 29... Rxf7 30. Qxf7+ Kd8 31. Qf8+ (31. Qxh5 Qxc2+ 32. Ka1 Qc3+ 33. Kb1 Qd3+ 34. Ka1 Qxf1+) 31... Kd7 32. Rf7+ Kc6 33. Qe8+ Kb6 34. Rxc7 Qxb4+ 35. Kc1 Qe1+ 36. Kb2 Qb4+ 37. Kc1 Qe1+ 38. Kb2 Kxc7 (38... Qb4+ 39. Kc1 $11) 39. Qxh5 Qc3+ 40. Kb1 $11) 28. axb3 {[%emt 0:00:05]} Rxh7 {[%emt 0:00:20]} 29. g6 {[%emt 0:03:25]} Rg7 {[%emt 0:03:10]} ({Black should play} 29... Rh6 $14 30. R1f5 Rxg6 31. Rf8+ Kd7 32. Rxh5 Rg1+ 33. Kb2 Rg2 34. Rf7+ (34. Rxb5 {is a self mate.} Rcxc2+ 35. Kb1 d3 36. Rxb7+ Kc6 37. Rbf7 Rb2+ 38. Ka1 Ra2+ 39. Kb1 Rgb2+ 40. Kc1 d2+ 41. Kd1 Rb1+ 42. Ke2 d1=Q+ 43. Ke3 Rxb3+ 44. Kf4 Rf2+ 45. Kg5 Qg1+ 46. Kh6 Rxh2#) 34... Kc6 35. Rxc7+ Kxc7) 30. R1f5 {[%emt 0:03:01]} (30. R7f5 $16 {Black must now prevent Rg1.} Rxg6 31. Rxh5) 30... Rxg6 $14 {[%emt 0:00:21]} 31. Rxc7 {[%emt 0:00:42]} Kxc7 {[%emt 0:00:02]} 32. Rxh5 {[%emt 0:00:11]} Rg1+ {[%emt 0:02:43]} 33. Kb2 {[%emt 0:00:12]} Re1 {[%emt 0:00:05]} 34. Rxb5 {[%emt 0:00:52]} Rxe4 {[%emt 0:01:27]} 35. Rh5 {[%emt 0:00:48] Dodges Rh4} Re1 {[%emt 0:01:40]} 36. h4 {[%emt 0:02:06]} Rh1 {[%emt 0:01:03]} 37. Rh8 {[%emt 0:00:40]} Kb6 {[%emt 0:01:05]} 38. Ka3 {[%emt 0:05:03]} Ra1+ {[%emt 0:00:18]} 39. Kb2 {[%emt 0:00:06]} Rh1 {[%emt 0:00:01]} 40. Rh5 {[%emt 0:00:24]} Kc6 {[%emt 0:02:45]} 41. b5+ {[%emt 0:03:35]} Kb6 {[%emt 0:01:22]} 42. Ka3 $1 {[%emt 0:01:18]} Rh2 {[%emt 0:00:20] [#]} 43. Kb4 $1 {[%emt 0:01:41]} Rxc2 {[%emt 0:00:55] [#]} 44. Rd5 $1 {[%emt 0:00:09][%csl LRd4,LRd6]} Kc7 {[%emt 0:00:17]} 45. Rxd4 {[%emt 0:00:15] Rc4+ would kill now.} Rh2 {[%emt 0:01:07]} 46. Kc4 {[%emt 0:01:22]} ({Better is} 46. Rf4 $16) 46... Rc2+ {[%emt 0:00:58]} (46... Re2 $11) 47. Kb4 {[%emt 0:06:24] Threatening mate with Rc4+.} Rh2 {[%emt 0:01:20]} 48. Rg4 {[%emt 0:00:19]} Kb6 {[%emt 0:01:29]} 49. Rc4 {[%emt 0:01:19]} (49. Kc4 $16) 49... Rh1 {[%emt 0:00:23]} (49... Rd2 $1 $11 {keeps the balance.}) 50. Rd4 $16 {[%emt 0:01:27]} Kc7 {[%emt 0:00:10]} 51. Ka5 {[%emt 0:07:19]} (51. Rg4 $16) 51... d5 {[%emt 0:03:06]} 52. Kb4 $16 {[%emt 0:01:45][%cal Ob4c5] Threatens to win with Kc5!} b6 {[%emt 0:04:15]} 53. Rxd5 {[%emt 0:02:58]} (53. Rf4 $16) 53... Rxh4+ $11 {[%emt 0:00:11]} 54. Kc3 {[%emt 0:03:04]} Rh7 {[%emt 0:00:30]} 1/2-1/2

[Event "12th Senioren-Cup Tegernsee 2024"]
[Site "Rottach-Egern"]
[Date "2024.04.13"]
[Round "8.1"]
[White "Schumacher, Gottfried"]
[Black "Schneider-Zinner, Harald"]
[Result "0-1"]
[ECO "D37"]
[WhiteElo "2102"]
[BlackElo "2335"]
[Annotator "RC"]
[PlyCount "56"]
[EventDate "2024.04.02"]
[EventType "swiss"]
[EventCountry "GER"]
[SourceTitle "playchess.com"]
[Source "ChessBase"]
[SourceQuality "1"]
[TimeControl "7800+30"]

1. d4 {[%emt 0:00:30]} Nf6 {[%emt 0:00:30]} 2. Nf3 {[%emt 0:00:30]} d5 {[%emt 0:00:30]} 3. c4 {[%emt 0:00:30]} e6 {[%emt 0:00:30]} 4. Nc3 {[%emt 0:00:30]} Be7 {[%emt 0:00:30]} 5. e3 {[%emt 0:00:30]} O-O {[%emt 0:00:30]} 6. Bd3 {[%emt 0:00:30]} dxc4 {[%emt 0:00:30]} 7. Bxc4 {[%emt 0:00:30]} a6 {[%emt 0:00:30]} 8. a3 {[%emt 0:00:30]} c5 {[%emt 0:00:30]} 9. O-O {[%emt 0:00:30]} b5 {[%emt 0:00:30]} 10. Be2 {[%emt 0:00:30]} Nbd7 {[%emt 0:00:30]} 11. dxc5 {[%emt 0:00:30]} Bxc5 {[%emt 0:00:30]} 12. b4 {[%emt 0:00:30]} Be7 {[%emt 0:00:30]} 13. Bb2 {[%emt 0:00:30]} Bb7 {[%emt 0:00:30]} 14. Qb3 {[%emt 0:00:30]} Qb6 {[%emt 0:00:30]} 15. Rfd1 {[%emt 0:00:30]} Rac8 {[%emt 0:00:30]} 16. Rd2 {[%emt 0:00:30]} Bxf3 {[%emt 0:00:30]} 17. gxf3 {[%emt 0:00:30]} Qb7 {[%emt 0:00:30]} 18. Ne4 {[%emt 0:00:30]} Nxe4 {[%emt 0:00:30]} 19. fxe4 {[%emt 0:00:30]} Nb6 {[%emt 0:00:30]} 20. Rad1 {[%emt 0:00:30]} Qxe4 {[%emt 0:00:30]} 21. Ba1 {[%emt 0:00:30]} Bf6 {[%emt 0:00:30]} 22. Rd6 {[%emt 0:00:30]} Bxa1 {[%emt 0:00:30]} 23. Rxb6 {[%emt 0:00:30]} Rc3 {[%emt 0:00:30]} 24. Qa2 {[%emt 0:00:30]} Rc2 {[%emt 0:00:30]} 25. Qxa1 {[%emt 0:00:30]} Rxe2 {[%emt 0:00:30]} 26. Qd4 {[%emt 0:00:30]} Qf3 {[%emt 0:00:30]} 27. Rf1 {[%emt 0:00:30]} Rc8 {[%emt 0:00:30]} 28. Qe5 {[%emt 0:00:30]} Rxf2 {[%emt 0:00:30]} 0-1

[Event "12th Senioren-Cup Tegernsee 2024"]
[Site "Rottach-Egern"]
[Date "2024.04.13"]
[Round "8.5"]
[White "Vatter, Hans-Joachim"]
[Black "Schober, Ralf"]
[Result "1/2-1/2"]
[ECO "C11"]
[WhiteElo "2211"]
[BlackElo "2092"]
[Annotator "RC"]
[PlyCount "110"]
[EventDate "2024.04.02"]
[EventType "swiss"]
[EventCountry "GER"]
[SourceTitle "playchess.com"]
[Source "ChessBase"]
[SourceQuality "1"]
[TimeControl "7800+30"]

1. d4 {[%emt 0:00:03]} e6 {[%emt 0:00:08]} 2. e4 {[%emt 0:01:14]} d5 {[%emt 0:00:09]} 3. Nc3 {[%emt 0:00:10]} Nf6 {[%emt 0:00:10]} 4. e5 {[%emt 0:00:41]} Nfd7 {[%emt 0:00:10]} 5. f4 {[%emt 0:00:05]} c5 {[%emt 0:00:02]} 6. Nf3 {[%emt 0:00:10]} Nc6 {[%emt 0:00:06]} 7. Be3 {[%emt 0:00:08]} Be7 {[%emt 0:01:05]} 8. Qd2 {[%emt 0:03:08]} a6 {[%emt 0:00:22]} 9. Bd3 {[%emt 0:10:53]} b5 {[%emt 0:04:13]} 10. dxc5 {[%emt 0:00:56]} Bxc5 {[%emt 0:01:05]} 11. Bxc5 {[%emt 0:05:57]} Nxc5 {[%emt 0:01:00]} 12. O-O-O {[%emt 0:00:03]} Qa5 {[%emt 0:05:11]} 13. Kb1 {[%emt 0:01:09]} Bb7 {[%emt 0:00:16]} 14. Ne2 {[%emt 0:02:32]} Qxd2 {[%emt 0:02:22]} 15. Rxd2 {[%emt 0:00:26]} g6 {[%emt 0:00:46]} 16. Ned4 {[%emt 0:00:21]} Ke7 {[%emt 0:02:06]} 17. Nxc6+ {[%emt 0:00:34]} Bxc6 {[%emt 0:00:14]} 18. Nd4 {[%emt 0:00:02]} Bd7 {[%emt 0:00:10]} 19. h4 {[%emt 0:00:20]} b4 {[%emt 0:19:08]} 20. g3 {[%emt 0:14:17]} h5 {[%emt 0:04:02]} 21. Rc1 {[%emt 0:10:12]} Na4 {[%emt 1:38:15]} 22. Ne2 {[%emt 0:25:19]} Rhc8 {[%emt 0:00:00]} 23. c3 {[%emt 0:10:28]} bxc3 {[%emt 0:00:00]} 24. Nxc3 {[%emt 0:00:08]} Nxc3+ {[%emt 0:00:00]} 25. Rxc3 {[%emt 0:01:33]} Rxc3 {[%emt 0:00:00]} 26. bxc3 {[%emt 0:00:02]} Rb8+ {[%emt 0:00:00]} 27. Kc1 {[%emt 0:06:32]} Rb6 {[%emt 0:00:00]} 28. Be2 {[%emt 0:08:18]} Ba4 {[%emt 0:00:00]} 29. Rd4 {[%emt 0:00:51]} Bd7 {[%emt 0:00:00]} 30. Rb4 {[%emt 0:02:40]} Rxb4 {[%emt 0:00:00]} 31. cxb4 {[%emt 0:00:02]} Bb5 {[%emt 0:00:00]} 32. Bd1 {[%emt 0:00:07]} Kd7 {[%emt 0:00:00]} 33. Kd2 {[%emt 0:00:07]} Kc6 {[%emt 0:00:00]} 34. Kc3 {[%emt 0:00:02]} Kb6 {[%emt 0:00:00]} 35. Kd4 {[%emt 0:04:42]} Kc6 {[%emt 0:00:00]} 36. a3 {[%emt 0:01:31]} Bc4 {[%emt 0:00:00]} 37. Bf3 {[%emt 0:07:28]} Bb3 {[%emt 0:00:00]} 38. Be2 {[%emt 0:04:18]} Kb6 {[%emt 0:00:00]} 39. Kc3 {[%emt 0:00:35]} Ba4 {[%emt 0:00:00]} 40. g4 {[%emt 0:01:49]} hxg4 {[%emt 0:00:00]} 41. Bxg4 {[%emt 0:00:01]} Be8 {[%emt 0:00:00]} 42. f5 {[%emt 0:04:09]} exf5 {[%emt 0:00:00]} 43. Bxf5 {[%emt 0:00:13]} gxf5 {[%emt 0:00:00]} 44. h5 {[%emt 0:00:10]} f4 {[%emt 0:00:00]} 45. h6 {[%emt 0:00:14]} f3 {[%emt 0:00:00]} 46. Kd2 {[%emt 0:00:18]} f2 {[%emt 0:00:00]} 47. Ke2 {[%emt 0:05:55]} Bb5+ {[%emt 0:00:00]} 48. Kxf2 {[%emt 0:00:02]} Bd3 {[%emt 0:00:00]} 49. Ke3 {[%emt 0:00:30]} Be4 {[%emt 0:00:00]} 50. a4 {[%emt 0:00:18]} Kc6 {[%emt 0:00:00]} 51. Kd4 {[%emt 0:00:43]} Kb6 {[%emt 0:00:00]} 52. Kc3 {[%emt 0:03:30]} Kc6 {[%emt 0:00:00]} 53. Kd4 {[%emt 0:00:02]} Kb6 {[%emt 0:00:00]} 54. Kc3 {[%emt 0:00:06]} Kc6 {[%emt 0:00:00]} 55. Kd4 {[%emt 0:00:06]} Kb6 {[%emt 0:00:00]} 1/2-1/2

[Event "12th Senioren-Cup Tegernsee 2024"]
[Site "Rottach-Egern"]
[Date "2024.04.13"]
[Round "8.6"]
[White "Schoetzig, Detlef"]
[Black "Luciani, Carlo"]
[Result "0-1"]
[ECO "A46"]
[WhiteElo "2068"]
[BlackElo "2159"]
[Annotator "RC"]
[PlyCount "96"]
[EventDate "2024.04.02"]
[EventType "swiss"]
[EventCountry "GER"]
[SourceTitle "playchess.com"]
[Source "ChessBase"]
[SourceQuality "1"]
[TimeControl "7800+30"]

1. d4 {[%emt 0:00:21]} Nf6 {[%emt 0:00:12]} 2. Nf3 {[%emt 0:00:14]} c5 {[%emt 0:00:13]} 3. dxc5 {[%emt 0:00:35]} e6 {[%emt 0:00:12]} 4. Be3 {[%emt 0:00:52]} Na6 {[%emt 0:00:44]} 5. Nc3 {[%emt 0:00:16]} Nxc5 {[%emt 0:04:00]} 6. Qd4 {[%emt 0:00:17]} d5 {[%emt 0:01:16]} 7. O-O-O {[%emt 0:06:57]} Be7 {[%emt 0:07:26]} 8. g4 {[%emt 0:01:33]} O-O {[%emt 0:01:53]} 9. Bg2 {[%emt 0:00:42]} Qa5 {[%emt 0:02:32]} 10. Kb1 {[%emt 0:00:57]} Na6 {[%emt 0:04:00]} 11. g5 {[%emt 0:05:50]} Nd7 {[%emt 0:02:46]} 12. Bd2 {[%emt 0:04:12]} Nb4 {[%emt 0:04:52]} 13. a3 {[%emt 0:05:38]} Nc6 {[%emt 0:00:25]} 14. Qa4 {[%emt 0:00:32]} Qd8 {[%emt 0:01:56]} 15. Bc1 {[%emt 0:18:11]} Rb8 {[%emt 0:10:12]} 16. Bf4 {[%emt 0:22:57]} Nc5 {[%emt 0:12:54]} 17. Qb5 {[%emt 0:09:19]} a6 {[%emt 0:00:41]} 18. Qxc6 {[%emt 0:00:12]} bxc6 {[%emt 0:00:34]} 19. Bxb8 {[%emt 0:00:03]} Bd7 {[%emt 0:07:25]} 20. Bf4 {[%emt 0:01:05]} f6 {[%emt 0:00:54]} 21. h4 {[%emt 0:04:24]} e5 {[%emt 0:00:49]} 22. gxf6 {[%emt 0:00:13]} gxf6 {[%emt 0:00:46]} 23. Bh6 {[%emt 0:01:08]} Rf7 {[%emt 0:00:17]} 24. Bh3 {[%emt 0:07:33]} Bf8 {[%emt 0:02:40]} 25. Rdg1+ {[%emt 0:05:16]} Kh8 {[%emt 0:01:17]} 26. Bc1 {[%emt 0:04:10]} d4 {[%emt 0:01:04]} 27. Nd1 {[%emt 0:00:43]} Bxh3 {[%emt 0:03:05]} 28. Rxh3 {[%emt 0:00:11]} Rg7 {[%emt 0:00:21]} 29. Rxg7 {[%emt 0:05:47]} Kxg7 {[%emt 0:05:30]} 30. h5 {[%emt 0:01:02]} Qd7 {[%emt 0:04:26]} 31. Rg3+ {[%emt 0:01:40]} Kf7 {[%emt 0:01:17]} 32. Nh4 {[%emt 0:11:53]} e4 {[%emt 0:04:16]} 33. h6 {[%emt 0:00:55]} Qd5 {[%emt 0:03:23]} 34. f3 {[%emt 0:05:29]} e3 {[%emt 0:05:17]} 35. b3 {[%emt 0:04:27]} d3 {[%emt 0:03:28]} 36. Nxe3 {[%emt 0:02:23]} dxe2 {[%emt 0:00:39]} 37. Nxd5 {[%emt 0:00:10]} e1=Q {[%emt 0:00:56]} 38. Nf5 {[%emt 0:01:53]} cxd5 {[%emt 0:00:44]} 39. Rg4 {[%emt 0:00:13]} Nd3 {[%emt 0:05:04]} 40. cxd3 {[%emt 0:00:24]} Bxa3 {[%emt 0:00:31]} 41. Rg7+ {[%emt 0:00:03]} Kf8 {[%emt 0:00:54]} 42. Rc7 {[%emt 0:00:03]} Qd1 {[%emt 0:02:39]} 43. Rc8+ {[%emt 0:02:31]} Kf7 {[%emt 0:01:02]} 44. Rc7+ {[%emt 0:00:06]} Kg6 {[%emt 0:01:18]} 45. Ne7+ {[%emt 0:04:37]} Kh5 {[%emt 0:00:39]} 46. Nxd5 {[%emt 0:01:44]} Bxc1 {[%emt 0:01:39]} 47. Nxf6+ {[%emt 0:00:31]} Kg6 {[%emt 0:00:44]} 48. Ng4 {[%emt 0:01:03]} Bf4+ {[%emt 0:00:59]} 0-1

[Event "12th Senioren-Cup Tegernsee 2024"]
[Site "Rottach-Egern"]
[Date "2024.04.13"]
[Round "8.8"]
[White "Schrems, Hermann"]
[Black "Kannenberg, Karl-Heinz"]
[Result "1-0"]
[ECO "D11"]
[WhiteElo "2032"]
[BlackElo "2108"]
[Annotator "RC"]
[PlyCount "99"]
[EventDate "2024.04.02"]
[EventType "swiss"]
[EventCountry "GER"]
[SourceTitle "playchess.com"]
[Source "ChessBase"]
[SourceQuality "1"]
[TimeControl "7800+30"]

1. d4 {[%emt 0:00:04]} d5 {[%emt 0:00:06]} 2. Nf3 {[%emt 0:00:05]} Nf6 {[%emt 0:00:07]} 3. g3 {[%emt 0:00:04]} c6 {[%emt 0:00:24]} 4. Bg2 {[%emt 0:00:05]} Bf5 {[%emt 0:00:05]} 5. c4 {[%emt 0:00:09]} e6 {[%emt 0:01:16]} 6. Nc3 {[%emt 0:00:05]} h6 {[%emt 0:01:19]} 7. Qb3 {[%emt 0:01:19]} Qb6 {[%emt 0:01:09]} 8. c5 {[%emt 0:01:12]} Qxb3 {[%emt 0:01:19]} 9. axb3 {[%emt 0:00:03]} Na6 {[%emt 0:00:12]} 10. Ra4 {[%emt 0:00:29]} Bc2 {[%emt 0:01:41]} 11. Bf4 {[%emt 0:03:22]} Bxb3 {[%emt 0:06:18]} 12. Ra3 {[%emt 0:00:07]} Bc2 {[%emt 0:00:10]} 13. O-O {[%emt 0:01:34]} Nh5 {[%emt 0:05:00]} 14. Bd2 {[%emt 0:01:33]} Be7 {[%emt 0:10:37]} 15. Rc1 {[%emt 0:02:21]} Bh7 {[%emt 0:20:16]} 16. Rb3 {[%emt 0:04:05]} b6 {[%emt 0:28:25]} 17. cxb6 {[%emt 0:01:31]} axb6 {[%emt 0:00:09]} 18. Rxb6 {[%emt 0:00:09]} Nb8 {[%emt 0:00:16]} 19. Ne5 {[%emt 0:03:33]} Bd8 {[%emt 0:04:55]} 20. Rb7 {[%emt 0:00:02]} O-O {[%emt 0:00:24]} 21. Bh3 {[%emt 0:00:02]} f5 {[%emt 0:01:16]} 22. Bf1 {[%emt 0:03:35]} Nf6 {[%emt 0:01:57]} 23. Nd1 {[%emt 0:01:16]} Ne4 {[%emt 0:04:08]} 24. Bb4 {[%emt 0:00:11]} Re8 {[%emt 0:00:13]} 25. f3 {[%emt 0:00:38]} Nf6 {[%emt 0:02:08]} 26. Bd6 {[%emt 0:02:07]} Na6 {[%emt 0:05:13]} 27. Rxc6 {[%emt 0:00:48]} f4 {[%emt 0:01:59]} 28. b4 {[%emt 0:00:42]} fxg3 {[%emt 0:06:49]} 29. hxg3 {[%emt 0:00:02]} Nh5 {[%emt 0:00:30]} 30. b5 {[%emt 0:15:20]} Nb4 {[%emt 0:05:59]} 31. Bxb4 {[%emt 0:00:22]} Ra1 {[%emt 0:00:27]} 32. Ne3 {[%emt 0:01:02]} Nxg3 {[%emt 0:03:51]} 33. Kg2 {[%emt 0:02:47]} Bg5 {[%emt 0:01:39]} 34. Kxg3 {[%emt 0:00:34]} Bxe3 {[%emt 0:01:09]} 35. Rcc7 {[%emt 0:00:58]} Bf5 {[%emt 0:00:40]} 36. Rxg7+ {[%emt 0:01:16]} Kh8 {[%emt 0:00:09]} 37. Bg2 {[%emt 0:01:45]} Bxd4 {[%emt 0:01:59]} 38. Ng6+ {[%emt 0:00:12]} Bxg6 {[%emt 0:01:01]} 39. Rxg6 {[%emt 0:00:07]} Rg8 {[%emt 0:00:48]} 40. Rxg8+ {[%emt 0:00:21]} Kxg8 {[%emt 0:00:11]} 41. Bd2 {[%emt 0:00:16]} Ra2 {[%emt 0:00:40]} 42. Bxh6 {[%emt 0:01:23]} Rxe2 {[%emt 0:00:10]} 43. f4 {[%emt 0:02:31]} Re3+ {[%emt 0:05:29]} 44. Bf3 {[%emt 0:00:20]} Re1 {[%emt 0:01:09]} 45. Bg5 {[%emt 0:06:55]} Rg1+ {[%emt 0:04:16]} 46. Kh2 {[%emt 0:02:51]} Be3 {[%emt 0:03:05]} 47. Bh5 {[%emt 0:00:37]} Rf1 {[%emt 0:02:21]} 48. Bf7+ {[%emt 0:00:22]} Kg7 {[%emt 0:01:07]} 49. Bxe6+ {[%emt 0:00:13]} Kg6 {[%emt 0:00:09]} 50. Bxd5 {[%emt 0:00:13]} 1-0

[Event "12th Senioren-Cup Tegernsee 2024"]
[Site "Rottach-Egern"]
[Date "2024.04.13"]
[Round "8.9"]
[White "Marentini, Marcel"]
[Black "Jahn, Peter"]
[Result "0-1"]
[ECO "E04"]
[WhiteElo "2102"]
[BlackElo "2068"]
[Annotator "NA RC"]
[PlyCount "132"]
[EventDate "2024.04.02"]
[EventType "swiss"]
[EventCountry "GER"]
[SourceTitle "playchess.com"]
[Source "ChessBase"]
[SourceQuality "1"]
[TimeControl "7800+30"]

1. Nf3 {[%emt 0:00:09]} d5 {[%emt 0:00:15]} 2. g3 {[%emt 0:00:46]} c5 {[%emt 0:00:14]} 3. Bg2 {[%emt 0:00:12]} Nc6 {[%emt 0:00:16]} 4. d4 {[%emt 0:00:09]} e6 {[%emt 0:00:15]} 5. O-O {[%emt 0:00:07]} Nf6 {[%emt 0:00:10]} 6. c4 {[%emt 0:00:07]} dxc4 {[%emt 0:00:10]} 7. dxc5 {[%emt 0:00:07]} Qxd1 {[%emt 0:00:13]} 8. Rxd1 {[%emt 0:00:08]} Bxc5 {[%emt 0:00:13]} 9. Nbd2 {[%emt 0:00:04]} c3 {[%emt 0:00:29]} 10. bxc3 {[%emt 0:00:07]} O-O {[%emt 0:00:14] E04: Open Catalan: 5 Nf3.} 11. Ne1 {[%emt 0:00:44]} Rd8 {[%emt 0:07:00]} 12. Nd3 {[%emt 0:00:36]} Be7 {[%emt 0:00:20]} 13. Bb2 {[%emt 0:09:46]} Bd7 {[%emt 0:00:47]} 14. c4 {[%emt 0:02:38]} Rac8 {[%emt 0:09:08]} 15. Rab1 {[%emt 0:06:58]} b6 {[%emt 0:01:56]} 16. Nb3 {[%emt 0:04:18]} Nb8 {[%emt 0:24:06]} 17. Rdc1 {[%emt 0:08:27]} Bc6 {[%emt 0:02:02]} 18. c5 {[%emt 0:01:15]} bxc5 {[%emt 0:03:17]} 19. Nbxc5 {[%emt 0:22:11]} Bxg2 {[%emt 0:01:12]} 20. Bxf6 {[%emt 0:03:47]} gxf6 {[%emt 0:15:44]} 21. Kxg2 {[%emt 0:00:43]} Rc7 {[%emt 0:03:47]} 22. g4 {[%emt 0:32:02]} Rdc8 {[%emt 0:05:46]} 23. Nb3 {[%emt 0:00:35]} Nd7 {[%emt 0:12:07]} 24. Rxc7 {[%emt 0:01:26]} Rxc7 {[%emt 0:02:01]} 25. Nd4 {[%emt 0:03:16]} Nb6 {[%emt 0:05:37]} 26. Rb5 {[%emt 0:05:58]} Rc4 {[%emt 0:04:25]} 27. e3 {[%emt 0:00:51]} Rc3 $11 {[%emt 0:01:54]} 28. Ne1 {[%emt 0:15:43]} Ra3 {[%emt 0:06:30]} 29. Nc6 {[%emt 0:02:22]} Bf8 {[%emt 0:00:12]} 30. Rb2 {[%emt 0:07:15]} Nd5 {[%emt 0:06:53]} 31. Nc2 {[%emt 0:04:10]} Ra6 {[%emt 0:01:34]} 32. Nb8 {[%emt 0:00:14]} Ra4 {[%emt 0:02:27]} 33. Nd7 {[%emt 0:01:27]} Bd6 {[%emt 0:01:15]} 34. Nd4 {[%emt 0:04:34]} Kg7 {[%emt 0:02:28]} 35. Nb5 {[%emt 0:01:52]} Rxg4+ {[%emt 0:03:52]} 36. Kf3 {[%emt 0:00:35]} Rb4 {[%emt 0:00:08]} 37. Rxb4 {[%emt 0:00:31]} Bxb4 {[%emt 0:00:07]} 38. Nxa7 {[%emt 0:00:12]} Nc3 {[%emt 0:00:06]} 39. Nc6 {[%emt 0:01:19]} Ba3 {[%emt 0:00:12]} 40. Nb6 {[%emt 0:01:55]} Nxa2 {[%emt 0:00:17]} 41. Nc4 {[%emt 0:00:25]} Bc5 {[%emt 0:00:22]} 42. Nb8 {[%emt 0:00:25]} Nb4 {[%emt 0:00:32]} 43. Nd7 {[%emt 0:00:10]} Be7 {[%emt 0:00:30]} 44. Ndb6 {[%emt 0:00:14]} f5 {[%emt 0:00:45]} 45. Nd7 {[%emt 0:00:11]} Nd5 {[%emt 0:00:54]} 46. Nde5 {[%emt 0:00:22]} Nc3 {[%emt 0:00:17]} 47. Nd3 {[%emt 0:00:38]} Ne4 {[%emt 0:01:14]} 48. Kg2 {[%emt 0:00:30]} Bd8 {[%emt 0:02:20]} 49. f3 {[%emt 0:00:18]} Nf6 {[%emt 0:00:32]} 50. Nde5 {[%emt 0:01:04]} Bc7 {[%emt 0:00:14]} 51. Nd3 {[%emt 0:00:08]} Nd5 {[%emt 0:00:25]} 52. h3 {[%emt 0:00:31]} f4 {[%emt 0:01:00]} 53. exf4 {[%emt 0:01:33]} Nxf4+ {[%emt 0:00:07]} 54. Nxf4 {[%emt 0:00:15]} Bxf4 {[%emt 0:00:03]} 55. Nb2 {[%emt 0:00:36]} Kf6 {[%emt 0:00:34]} 56. Nd3 {[%emt 0:00:07]} Bd6 {[%emt 0:00:11]} 57. Nf2 {[%emt 0:00:15]} Kf5 {[%emt 0:00:55]} 58. Ne4 {[%emt 0:00:16]} Bb4 {[%emt 0:00:18]} 59. Ng3+ {[%emt 0:00:12]} Kf4 {[%emt 0:00:57]} 60. Nh5+ {[%emt 0:00:29]} Ke3 {[%emt 0:02:08]} 61. Nf6 {[%emt 0:00:35]} Be7 {[%emt 0:00:25]} 62. Ng4+ {[%emt 0:00:55]} Kf4 {[%emt 0:00:42]} 63. Nf2 {[%emt 0:00:09]} f5 {[%emt 0:00:26]} 64. Nd3+ {[%emt 0:01:11]} Ke3 {[%emt 0:00:14]} 65. Nf2 {[%emt 0:00:15]} Ke2 {[%emt 0:00:24]} 66. Nh1 {[%emt 0:00:29]} Bh4 {[%emt 0:00:19]} 0-1